fUSD/lending_fUSD_20240606
["ID","MTS","AMOUNT","RATE_DAILY","PERIOD"]
[328669937,1717686683931,-500.0,0.00029863,4]
[328669938,1717686683940,-500.0,0.00029863,4]
[328669939,1717686683950,-2146.13,0.00029863,4]
[328669940,1717686683959,-500.0,0.00029863,4]
[328669941,1717686683968,-500.0,0.00029863,4]
[328669942,1717686683977,-4182.97,0.00029863,4]
[328669943,1717686683986,-2172.84,0.00029863,4]
[328669944,1717686683995,-878.93,0.00029863,4]
[328669945,1717686684005,-500.0,0.00029863,4]
[328669946,1717686684015,-500.0,0.00029863,4]
[328669947,1717686684024,-500.0,0.00029863,4]
[328669948,1717686684034,-652.65,0.00029863,4]
[328669949,1717686684044,-500.0,0.00029863,4]
[328669950,1717686684054,-943.09,0.00029863,4]
[328669951,1717686684064,-500.0,0.00029863,4]
[328669952,1717686684073,-1798.64,0.00029863,4]
[328669953,1717686684084,-2073.32,0.00029863,4]
[328669954,1717686684093,-584.12,0.00029863,4]
[328669955,1717686684103,-500.0,0.00029863,4]
[328669956,1717686684112,-1369.53,0.00029863,4]
[328669957,1717686684122,-500.0,0.00029863,4]
[328669958,1717686684131,-500.0,0.00029863,4]
[328669959,1717686684141,-1101.45,0.00029863,4]
[328669960,1717686684151,-1246.45,0.00029863,4]
[328669961,1717686684160,-551.64,0.00029863,4]
[328669962,1717686684170,-576.02,0.00029863,4]
[328669963,1717686684180,-500.0,0.00029863,4]
[328669964,1717686684189,-897.91,0.00029863,4]
[328669965,1717686684199,-500.0,0.00029863,4]
[328669966,1717686684208,-1745.14,0.00029863,4]
[328669967,1717686684218,-1224.62,0.00029863,4]
[328669968,1717686684228,-528.54,0.00029863,4]
[328669969,1717686684238,-500.0,0.00029863,4]
[328669970,1717686684248,-500.0,0.00029863,4]
[328669971,1717686684257,-1556.05,0.00029863,4]
[328669972,1717686684268,-669.15,0.00029863,4]
[328669973,1717686684279,-2487.78,0.00029863,4]
[328669974,1717686684288,-500.0,0.00029863,4]
[328669975,1717686684298,-500.0,0.00029863,4]
[328669976,1717686684308,-1343.56,0.00029863,4]
[328669977,1717686684318,-396.37231071,0.00029863,4]
[328669978,1717686684328,-500.0,0.00029863,4]
[328669979,1717686684337,-500.0,0.00029863,4]
[328669980,1717686684347,-500.0,0.00029863,4]
[328669981,1717686684356,-500.0,0.00029863,4]
[328669982,1717686684366,-500.0,0.00029863,4]
[328669983,1717686684376,-740.29,0.00029863,4]
[328669984,1717686684385,-500.0,0.00029863,4]
[328669985,1717686684395,-500.0,0.00029863,4]
[328669986,1717686684405,-781.97,0.00029863,4]
[328669987,1717686684414,-500.0,0.00029863,4]
[328669988,1717686684424,-1229.55,0.00029863,4]
[328669989,1717686684434,-398.98971935,0.00029863,4]
[328669990,1717686684444,-2000.0,0.00029863,21]
[328669991,1717686684454,-500.0,0.00029863,4]
[328669992,1717686684464,-500.0,0.00029863,4]
[328669993,1717686684474,-5063.26,0.00029863,4]
[328669994,1717686684484,-1206.05,0.00029863,4]
[328669995,1717686684493,-1584.5,0.00029863,4]
[328669996,1717686684503,-731.79,0.00029863,4]
[328669997,1717686684512,-500.0,0.00029863,4]
[328669998,1717686684522,-1101.15,0.00029863,4]
[328669999,1717686684533,-537.05,0.00029863,4]
[328670000,1717686684547,-500.0,0.00029863,4]
[328670001,1717686684557,-674.4,0.00029863,4]
[328670002,1717686684567,-500.0,0.00029863,4]
[328670003,1717686684578,-1141.68,0.00029863,4]
[328670004,1717686684588,-500.0,0.00029863,4]
[328670005,1717686684597,-297.70020373,0.00029895,2]
[328670006,1717686684607,-335.484779,0.000299,3]
[328670007,1717686684619,-184.73,0.000299,7]
[328670008,1717686684629,-500.0,0.000299,3]
[328670009,1717686684639,-3311.84501155,0.000299,2]
[328670010,1717686684648,-202.63438899,0.000299,2]
[328670011,1717686684658,-159.90388304,0.000299,15]
[328670012,1717686684668,-405.44738174,0.000299,15]
[328670013,1717686684677,-232.48717405,0.000299,2]
[328670014,1717686684687,-150.89337882,0.000299,7]
[328670015,1717686684697,-150.89337882,0.000299,7]
[328670016,1717686684706,-150.89337882,0.000299,7]
[328670017,1717686684716,-150.89337882,0.000299,7]
[328670018,1717686684726,-150.89337882,0.000299,7]
[328670019,1717686684735,-1066.10471386,0.000299,2]
[328670020,1717686684745,-150.89337882,0.000299,7]
[328670021,1717686684755,-150.89337882,0.000299,7]
[328670022,1717686684765,-150.89337882,0.000299,7]
[328670023,1717686684775,-150.89337882,0.000299,7]
[328670024,1717686684785,-150.89337882,0.000299,7]
[328670025,1717686684795,-150.89337882,0.000299,7]
[328670026,1717686684805,-150.89337882,0.000299,7]
[328670027,1717686684815,-150.89337882,0.000299,7]
[328670028,1717686684825,-151.39,0.000299,7]
[328670029,1717686684835,-422.57646071,0.000299,7]
[328670030,1717686684845,-422.57646071,0.000299,7]
[328670031,1717686684855,-422.57646071,0.000299,7]
[328670032,1717686684864,-422.57646071,0.000299,7]
[328670033,1717686684875,-422.57646071,0.000299,7]
[328670034,1717686684884,-422.57646071,0.000299,7]
[328670035,1717686684894,-422.57646071,0.000299,7]
[328670036,1717686684903,-422.57646071,0.000299,7]
[328670037,1717686684913,-422.57646071,0.000299,7]
[328670038,1717686684923,-422.57646071,0.000299,7]
[328670039,1717686684933,-422.57646071,0.000299,7]
[328670040,1717686684942,-422.57646071,0.000299,7]
[328670041,1717686684952,-422.57646071,0.000299,7]
[328670042,1717686684962,-422.57646071,0.000299,7]
[328670043,1717686684972,-422.57646071,0.000299,7]
[328670044,1717686684982,-422.57646071,0.000299,7]
[328670045,1717686684991,-422.57646071,0.000299,7]
[328670046,1717686685002,-422.57646071,0.000299,7]
[328670047,1717686685012,-422.57646071,0.000299,7]
[328670048,1717686685022,-423.07,0.000299,7]
[328670049,1717686685032,-184.72814082,0.000299,7]
[328670050,1717686685041,-184.72814082,0.000299,7]
[328670051,1717686685051,-185.22,0.000299,7]
[328670052,1717686685061,-158.44554928,0.000299,7]
[328670053,1717686685070,-158.44554928,0.000299,7]
[328670054,1717686685081,-158.44554928,0.000299,7]
[328670055,1717686685091,-158.44554928,0.000299,7]
[328670056,1717686685101,-158.44554928,0.000299,7]
[328670057,1717686685110,-158.44554928,0.000299,7]
[328670058,1717686685120,-158.44554928,0.000299,7]
[328670059,1717686685130,-158.44554928,0.000299,7]
[328670060,1717686685140,-158.44554928,0.000299,7]
[328670061,1717686685149,-158.44554928,0.000299,7]
[328670062,1717686685159,-158.44554928,0.000299,7]
[328670063,1717686685169,-158.44554928,0.000299,7]
[328670064,1717686685179,-158.44554928,0.000299,7]
[328670065,1717686685189,-158.94,0.000299,7]
[328670066,1717686685199,-155.33,0.000299,7]
[328670067,1717686685208,-193.33259223,0.000299,2]
[328670068,1717686685218,-417.16158756,0.000299,2]
[328670069,1717686685228,-285.92858482,0.000299,2]
[328670070,1717686685238,-178.96749932,0.000299,2]
[328670071,1717686685247,-151.5,0.00029911,15]
[328670072,1717686685257,-154.19805681,0.0002992,2]
[328670073,1717686685267,-150.5,0.00029921,15]
[328670074,1717686685277,-730.75720455,0.00029927,2]
[328670075,1717686685287,-150.5,0.00029931,15]
[328670076,1717686685297,-457.29904398,0.00029934,2]
[328670077,1717686685307,-497.40953863,0.00029941,31]
[328670078,1717686685317,-179.36248304,0.00029942,2]
[328670079,1717686685327,-42522.22691089,0.00029942,13]
[328670080,1717686685337,-99810.78251062,0.00029943,2]
[328670081,1717686685347,-381.5790573,0.00029945,2]
[328670082,1717686685356,-157.81797772,0.00029953,2]
[328670083,1717686685366,-457.29904398,0.00029959,2]
[328670084,1717686685377,-2189.15550805,0.00029971,2]
[328670085,1717686685386,-457.29904398,0.00029976,2]
[328670086,1717686685396,-154.56264195,0.00029977,2]
[328670087,1717686685406,-154.72557783,0.00029978,2]
[328670088,1717686685416,-538.0378035,0.00029979,2]
[328670089,1717686685426,-472.9609675,0.00029979,2]
[328670090,1717686685436,-407.8841316,0.00029979,2]
[328670091,1717686685446,-342.8072957,0.00029979,2]
[328670092,1717686685456,-277.7304597,0.00029979,2]
[328670093,1717686685466,-213.3394703,0.00029979,2]
[328670094,1717686685477,-213.3394703,0.00029979,2]
[328670095,1717686685488,-213.3394703,0.00029979,2]
[328670096,1717686685498,-213.3394703,0.00029979,2]
[328670097,1717686685508,-213.3394703,0.00029979,2]
[328670098,1717686685518,-192.7100516,0.00029979,2]
[328670099,1717686685529,-2749.291453,0.00029979,2]
[328670100,1717686685541,-2411.7646297,0.00029979,2]
[328670101,1717686685552,-2074.2378064,0.00029979,2]
[328670102,1717686685562,-1736.7109831,0.00029979,2]
[328670103,1717686685572,-1399.1841598,0.00029979,2]
[328670104,1717686685583,-172.0149749,0.00029979,2]
[328670105,1717686685593,-172.0149749,0.00029979,2]
[328670106,1717686685604,-172.0149749,0.00029979,2]
[328670107,1717686685614,-172.0149749,0.00029979,2]
[328670108,1717686685624,-172.0149749,0.00029979,2]
[328670109,1717686685635,-159.42930009,0.00029981,2]
[328670110,1717686685645,-603.1146394,0.00029986,2]
[328670111,1717686685655,-213.3394703,0.00029986,2]
[328670112,1717686685666,-3086.8182763,0.00029986,2]
[328670113,1717686685676,-172.0149749,0.00029986,2]
[328670114,1717686685688,-108402.55747086,0.0002999,2]
[328670115,1717686685699,-656.08732796,0.00029998,2]
[328670116,1717686685708,-155.37423626,0.00029998,2]
[328670117,1717686685718,-155.20518623,0.00029998,2]
[328670118,1717686685728,-155.40343483,0.00029998,2]
[328670119,1717686685738,-3000.96077813,0.00029998,2]
[328670120,1717686685748,-469.15504323,0.00029998,2]
[328670121,1717686685757,-167.61046203,0.00029998,2]
[328670122,1717686685767,-732.90774149,0.00029998,2]
[328670123,1717686685776,-1488.74285699,0.00029998,2]
[328670124,1717686685786,-399.94665033,0.00029998,4]
[328670125,1717686685795,-163.00145255,0.00029998,2]
[328670126,1717686685806,-334.96945007,0.00029998,2]
[328670127,1717686685815,-483.57239037,0.00029998,2]
[328670128,1717686685825,-217.25516171,0.00029998,2]
[328670129,1717686685835,-326.82850745,0.00029998,2]
[328670130,1717686685845,-706.46620802,0.00029998,2]
[328670131,1717686685855,-481.53748878,0.00029998,2]
[328670132,1717686685865,-155.0,0.00029998,2]
[328670133,1717686685875,-1390.06769732,0.00029998,2]
[328670134,1717686685886,-718.42864834,0.00029998,2]
[328670135,1717686685896,-17680.16878503,0.00029998,2]
[328670136,1717686685907,-330.51683228,0.00029998,2]
[328670137,1717686685917,-5000.0,0.00029998,2]
[328670138,1717686685927,-158.6466307,0.00029998,2]
[328670139,1717686685938,-273.33481089,0.00029999,2]
[328670140,1717686685947,-4868.55801951,0.00029999,2]
[328670141,1717686685958,-39068094.66802627,0.0003,2]
[328670142,1717686685968,-377.5329593,0.0003,2]
[328670143,1717686685978,-1712.42439369,0.0003,2]
[328670144,1717686685988,-2349.79329018,0.0003,4]
[328670145,1717686685998,-626.33513578,0.0003,10]
[328670146,1717686686008,-23892.56567196,0.0003,4]
[328670147,1717686686018,-155.0,0.0003,2]
[328670148,1717686686028,-592.85966238,0.0003,2]
[328670149,1717686686039,-11986.76531158,0.0003,4]
[328670150,1717686686050,-2181.80267594,0.0003,10]
[328670151,1717686686060,-5723.40806258,0.0003,2]
[328670152,1717686686070,-1186.0,0.0003,7]
[328670153,1717686686079,-15000.0,0.0003,10]
[328670154,1717686686089,-465486.45197305,0.0003,2]
[328670155,1717686686099,-1152.0,0.0003,10]
[328670156,1717686686109,-3200.0,0.0003,2]
[328670157,1717686686118,-1533.00651431,0.0003,15]
[328670158,1717686686128,-500.0,0.0003,2]
[328670159,1717686686138,-453032.33521399,0.0003,2]
[328670160,1717686686147,-620.51472884,0.0003,2]
[328670161,1717686686156,-345.0,0.0003,2]
[328670162,1717686686166,-970718.80919336,0.0003,2]
[328670163,1717686686175,-500.10643127,0.0003,2]
[328670164,1717686686186,-2000.0,0.0003,10]
[328670165,1717686686195,-488.0,0.0003,14]
[328670166,1717686686205,-310981.9806027,0.0003,10]
[328670167,1717686686215,-2049159.15502218,0.0003,2]
[328670168,1717686686225,-571.35,0.0003,3]
[328670169,1717686686235,-100773150.39588024,0.0003,2]
[328670170,1717686686245,-11064.5244304,0.0003,3]
[328670171,1717686686255,-465.72269845,0.0003,4]
[328670172,1717686686265,-1144048.69505241,0.0003,2]
[328670173,1717686686275,-109037.71952778,0.0003,2]
[328670174,1717686686285,-449.0,0.0003,2]
[328670175,1717686686295,-946.3,0.0003,2]
[328670176,1717686686462,-354.0,0.0003,2]
[328670177,1717686686472,-355.0963,0.0003,2]
[328670178,1717686686482,-1000.0,0.0003,2]
[328670179,1717686686492,-503.4789,0.0003,2]
[328670180,1717686686502,-3885.49593481,0.0003,7]
[328670181,1717686686512,-2564533.34727923,0.0003,2]
[328670182,1717686686522,-1444828.61148599,0.0003,2]
[328670183,1717686686532,-500.0,0.0003,2]
[328670184,1717686686546,-1208493.51237616,0.0003,2]
[328670185,1717686686555,-345.0,0.0003,2]
[328670186,1717686686565,-150.0,0.0003,2]
[328670187,1717686686575,-536120.4170262,0.0003,2]
[328670188,1717686686586,-1000.0,0.0003,2]
[328670189,1717686686596,-192.46331001,0.0003,2]
[328670190,1717686686605,-3301006.98629273,0.0003,2]
[328670191,1717686686616,-490.83379959,0.0003,4]
[328670192,1717686686626,-9904466.95515787,0.0003,2]
[328670193,1717686686839,-931.13278959,0.0003,2]
[328670194,1717686686852,-2063.4,0.0003,2]
[328670195,1717686686864,-3782.8,0.0003,2]
[328670196,1717686687027,-6961.03432312,0.0003,2]
[328670197,1717686687039,-1470.14303419,0.0003,2]
[328670198,1717686687051,-7292.85290267,0.0003,2]
[328670199,1717686687143,-313.64290147,0.00029998,2]
[328670200,1717686687152,-16651.60709852,0.0003,2]
[328670201,1717686687164,-6837.06832394,0.0003,2]
[328670202,1717686687175,-2292.83642451,0.0003,2]
[328670203,1717686687187,-1680.37818217,0.0003,2]
[328670204,1717686687204,-1278.55706747,0.0003,2]
[328670205,1717686687216,-539.03522045,0.0003,2]
[328670206,1717686687229,-493.17867063,0.0003,2]
[328670207,1717686687240,-7906.26239913,0.0003,2]
[328670208,1717686687251,-2696.61890355,0.0003,2]
[328670209,1717686687263,-5002.13,0.0003,2]
[328670210,1717686687274,-1091.17424659,0.0003,2]
[328670211,1717686687285,-1655.90047631,0.0003,2]
[328670212,1717686687363,-2686.36914537,0.00029998,2]
[328670213,1717686687372,-1787.96246769,0.0003,2]
[328670214,1717686687383,-773.70884423,0.0003,2]
[328670215,1717686687395,-314305.94878763,0.0003,2]
[328670216,1717686687406,-269.78782145,0.0003,2]
[328670217,1717686687418,-571199.54569567,0.0003,2]
[328670218,1717686687429,-1498.24514639,0.0003,2]
[328670223,1717687134704,1160.13845328,0.0003,60]
[328670224,1717687136263,885.0,0.00025,30]
[328670225,1717687156655,1160.13845328,0.0003,60]
[328670226,1717687223159,1225.4879487,0.0003,60]
[328670227,1717687258105,-797.0,0.00012502,2]
[328670228,1717687258129,-4126.118,0.00012503,2]
[328670229,1717687258154,-2033.3109,0.00012559,2]
[328670230,1717687258179,-250.0,0.00012634,2]
[328670231,1717687258204,-156.39,0.00012634,2]
[328670232,1717687258229,-156.39,0.00012639,2]
[328670233,1717687258255,-156.39,0.00012644,2]
[328670234,1717687258281,-156.39,0.00012649,2]
[328670235,1717687258306,-156.39,0.00012654,2]
[328670236,1717687258331,-156.39,0.00012659,2]
[328670237,1717687258356,-156.39,0.00012664,2]
[328670238,1717687258380,-499.99,0.00012664,2]
[328670239,1717687258404,-150.99,0.00012664,2]
[328670240,1717687258429,-150.99,0.00012664,2]
[328670241,1717687258454,-156.39,0.00012668,2]
[328670242,1717687258480,-156.39,0.00012673,2]
[328670243,1717687258505,-156.39,0.00012678,2]
[328670244,1717687258772,-156.39,0.00012683,2]
[328670245,1717687258799,-156.39,0.00012688,2]
[328670246,1717687258824,-156.39,0.00012693,2]
[328670247,1717687258851,-156.39,0.00012698,2]
[328670266,1717687832179,-295.44814184,0.00013899,2]
[328670268,1717687832193,-3089.32345978,0.00013899,2]
[328670269,1717687832203,-331.94443523,0.000139,2]
[328670270,1717687832215,-3108.42906477,0.000139,2]
[328670272,1717687832225,-1980.08690757,0.0002,2]
[328670274,1717687832235,-3082.05,0.00020828,2]
[328670275,1717687832245,-4518.07022682,0.00020853,2]
[328670276,1717687832469,-756.03810701,0.00020853,2]
[328670277,1717687832482,-609.99166617,0.00020853,2]
[328670278,1717687832492,-342.63,0.00021918,2]
[328670279,1717687832502,-174.17833384,0.00024036,2]
[328670280,1717687832515,-77.89166616,0.00024036,2]
[328670281,1717687832525,-160.43,0.00024384,2]
[328670282,1717687832535,-7557.0,0.000247,5]
[328670283,1717687832544,-500.0,0.00024882,2]
[328670284,1717687832554,-706.05483356,0.00025202,2]
[328670285,1717687832564,-250.0,0.00025203,2]
[328670286,1717687832574,-1014.61,0.00025224,2]
[328670287,1717687832584,-381.5,0.00025343,2]
[328670288,1717687832594,-200.0,0.0002539,2]
[328670289,1717687832604,-150.0,0.00025424,2]
[328670290,1717687832613,-23299.41,0.00025541,2]
[328670291,1717687832623,-200.0,0.00025597,2]
[328670292,1717687832633,-193.906,0.00025763,2]
[328670293,1717687832643,-2402.0,0.00025763,2]
[328670294,1717687832653,-159.0,0.00025763,2]
[328670295,1717687832663,-276.387,0.00025763,2]
[328670296,1717687832674,-300.0,0.00025763,2]
[328670297,1717687832683,-235.291,0.00025763,2]
[328670298,1717687832693,-1493.4,0.00025763,2]
[328670299,1717687832703,-38025.0,0.00025763,2]
[328670300,1717687832712,-1272.139,0.00025763,2]
[328670301,1717687832722,-1223.559,0.00025763,2]
[328670302,1717687832731,-1000.0,0.00025954,2]
[328670303,1717687832741,-250.0,0.00025954,2]
[328670304,1717687832751,-171.2,0.00025954,2]
[328670306,1717687832761,-943.46,0.00025954,2]
[328670309,1717687832771,-250.0,0.00025954,2]
[328670310,1717687832782,-157.25,0.00026149,2]
[328670313,1717687832793,-157.25,0.00026224,2]
[328670314,1717687832816,-500.0,0.00026244,2]
[328670315,1717687832838,-455.01346461,0.00026244,2]
[328670316,1717687832860,-500.0,0.00026244,2]
[328670317,1717687832883,-157.25,0.000263,2]
[328670318,1717687832904,-252.07,0.000263,2]
[328670319,1717687832928,-157.25,0.00026376,2]
[328670320,1717687832950,-157.25,0.00026451,2]
[328670321,1717687832976,-157.25,0.00026527,2]
[328670322,1717687832986,-157.25,0.00026603,2]
[328670323,1717687832996,-157.25,0.00026678,2]
[328670324,1717687833006,-282.1196435,0.00026698,2]
[328670325,1717687833016,-157.25,0.00026754,2]
[328670326,1717687833026,-800.0,0.00026822,2]
[328670327,1717687833038,-157.25,0.0002683,2]
[328670328,1717687833048,-800.0,0.00026849,2]
[328670329,1717687833058,-800.0,0.00026849,2]
[328670330,1717687833068,-800.0,0.00026877,2]
[328670331,1717687833078,-800.0,0.00026877,2]
[328670332,1717687833088,-157.25,0.00026906,2]
[328670333,1717687833098,-157.25,0.00026981,2]
[328670334,1717687833108,-200.0,0.00027,2]
[328670335,1717687833118,-157.25,0.00027057,2]
[328670336,1717687833128,-157.25,0.00027133,2]
[328670337,1717687833138,-800.0,0.00027178,2]
[328670338,1717687833147,-157.25,0.00027208,2]
[328670339,1717687833158,-157.25,0.00027284,2]
[328670340,1717687833170,-1357.05080303,0.00027297,2]
[328670341,1717687833181,-500.0,0.0002734,2]
[328670342,1717687833191,-157.25,0.0002736,2]
[328670343,1717687833201,-500.0,0.00027397,4]
[328670344,1717687833211,-500.0,0.00027397,4]
[328670345,1717687833222,-295.42481821,0.00027397,4]
[328670346,1717687833232,-500.0,0.00027397,4]
[328670347,1717687833241,-500.0,0.00027397,4]
[328670348,1717687833251,-500.0,0.00027397,4]
[328670349,1717687833261,-529.9722669,0.00027397,4]
[328670350,1717687833271,-500.0,0.00027397,4]
[328670351,1717687833281,-525.07901113,0.00027397,4]
[328670352,1717687833290,-500.0,0.00027397,4]
[328670353,1717687833300,-500.0,0.00027397,4]
[328670354,1717687833310,-500.0,0.00027397,4]
[328670355,1717687833320,-500.0,0.00027397,4]
[328670356,1717687833330,-500.0,0.00027397,4]
[328670357,1717687833340,-500.0,0.00027397,4]
[328670358,1717687833350,-500.0,0.00027397,4]
[328670359,1717687833360,-500.0,0.00027397,4]
[328670360,1717687833370,-500.0,0.00027397,4]
[328670361,1717687833379,-500.0,0.00027397,4]
[328670362,1717687833389,-522.85356522,0.00027397,4]
[328670363,1717687833398,-500.0,0.00027397,4]
[328670364,1717687833408,-519.36397666,0.00027397,4]
[328670365,1717687833420,-500.0,0.00027397,4]
[328670366,1717687833431,-500.0,0.00027397,4]
[328670367,1717687833442,-500.0,0.00027397,4]
[328670368,1717687833452,-500.0,0.00027397,4]
[328670369,1717687833463,-500.0,0.00027397,4]
[328670370,1717687833472,-500.0,0.00027397,4]
[328670371,1717687833482,-500.0,0.00027397,4]
[328670372,1717687833492,-500.0,0.00027397,4]
[328670373,1717687833502,-500.0,0.00027397,4]
[328670374,1717687833512,-500.0,0.00027397,4]
[328670375,1717687833522,-500.0,0.00027397,4]
[328670376,1717687833532,-500.0,0.00027397,4]
[328670377,1717687833542,-500.0,0.00027397,4]
[328670378,1717687833552,-500.0,0.00027397,4]
[328670379,1717687833562,-558.05321747,0.00027397,4]
[328670380,1717687833572,-500.0,0.00027397,4]
[328670381,1717687833583,-500.0,0.00027397,4]
[328670382,1717687833592,-500.0,0.00027397,4]
[328670383,1717687833602,-500.0,0.00027397,4]
[328670384,1717687833613,-500.0,0.00027397,4]
[328670385,1717687833623,-500.0,0.00027397,4]
[328670386,1717687833634,-500.0,0.00027397,4]
[328670387,1717687833645,-500.0,0.00027397,4]
[328670388,1717687833655,-500.0,0.00027397,4]
[328670389,1717687833665,-500.0,0.00027397,4]
[328670390,1717687833676,-500.0,0.00027397,4]
[328670391,1717687833686,-500.0,0.00027397,4]
[328670392,1717687833696,-500.0,0.00027397,4]
[328670393,1717687833707,-500.0,0.00027397,4]
[328670394,1717687833717,-880.74,0.00027397,4]
[328670395,1717687833727,-500.0,0.00027397,4]
[328670396,1717687833738,-500.0,0.00027397,4]
[328670397,1717687833748,-500.0,0.00027397,4]
[328670398,1717687833758,-500.0,0.00027397,4]
[328670399,1717687833768,-500.0,0.00027397,4]
[328670400,1717687833778,-500.0,0.00027397,4]
[328670401,1717687833788,-157.25,0.00027435,2]
[328670402,1717687833798,-157.25,0.00027511,2]
[328670403,1717687833808,-1357.05080301,0.00027586,2]
[328670404,1717687833819,-500.0,0.00027671,4]
[328670405,1717687833830,-500.0,0.00027671,4]
[328670406,1717687833841,-500.0,0.00027671,4]
[328670407,1717687833851,-431.0,0.00027671,4]
[328670408,1717687833861,-500.0,0.00027671,4]
[328670409,1717687833871,-500.0,0.00027671,4]
[328670410,1717687833882,-500.0,0.00027671,4]
[328670411,1717687833892,-500.0,0.00027671,4]
[328670412,1717687833902,-500.0,0.00027671,4]
[328670413,1717687833912,-500.0,0.00027671,4]
[328670414,1717687833923,-500.0,0.00027671,4]
[328670415,1717687833933,-880.74,0.00027671,4]
[328670416,1717687833947,-500.0,0.00027671,4]
[328670417,1717687833957,-500.0,0.00027671,4]
[328670418,1717687833967,-500.0,0.00027671,4]
[328670419,1717687833978,-1357.05080301,0.00027875,2]
[328670420,1717687833988,-348.1,0.00027945,4]
[328670421,1717687833998,-500.0,0.00027945,4]
[328670422,1717687834008,-500.0,0.00027945,4]
[328670423,1717687834021,-500.0,0.00027945,4]
[328670424,1717687834033,-500.0,0.00027945,4]
[328670425,1717687834043,-500.0,0.00027945,4]
[328670426,1717687834053,-500.0,0.00027945,4]
[328670427,1717687834063,-500.0,0.00027945,4]
[328670428,1717687834073,-880.74,0.00027945,4]
[328670429,1717687834083,-500.0,0.00027945,4]
[328670430,1717687834094,-500.0,0.00027945,4]
[328670431,1717687834104,-500.0,0.00027945,4]
[328670432,1717687834114,-1014.61,0.00027964,2]
[328670433,1717687834124,-180.0,0.00028043,2]
[328670434,1717687834134,-7506.0369,0.00028119,2]
[328670435,1717687834144,-1357.05080301,0.00028165,2]
[328670436,1717687834154,-500.00000072,0.00028216,4]
[328670437,1717687834165,-155.0,0.00028217,2]
[328670438,1717687834177,-288.18130188,0.00028217,2]
[328670439,1717687834187,-932.25623737,0.00028217,2]
[328670440,1717687834197,-157.93299216,0.00028217,2]
[328670441,1717687834208,-155.0,0.00028217,2]
[328670442,1717687834218,-783.15448036,0.00028217,2]
[328670443,1717687834228,-602.92071328,0.00028217,2]
[328670444,1717687834238,-5579.5952359,0.00028217,2]
[328670445,1717687834248,-3099.09729572,0.00028217,2]
[328670446,1717687834258,-2193.12420193,0.00028217,2]
[328670447,1717687834268,-2123.86512038,0.00028219,2]
[328670448,1717687834278,-500.0,0.00028219,2]
[328670449,1717687834288,-257.82046593,0.00028219,2]
[328670450,1717687834298,-558.13427144,0.00028219,4]
[328670451,1717687834308,-500.0,0.00028219,4]
[328670452,1717687834319,-500.0,0.00028219,4]
[328670453,1717687834329,-500.0,0.00028219,4]
[328670454,1717687834347,-500.0,0.00028219,4]
[328670455,1717687834366,-500.0,0.00028219,4]
[328670456,1717687834668,-500.0,0.00028219,4]
[328670457,1717687834679,-880.74,0.00028219,4]
[328670458,1717687834689,-500.0,0.00028219,4]
[328670459,1717687834699,-500.0,0.00028219,4]
[328670460,1717687834708,-500.0,0.00028219,4]
[328670461,1717687834718,-7500.0,0.00028314,2]
[328670462,1717687834727,-186.33861237,0.00028392,2]
[328670463,1717687834737,-551.25359977,0.00028436,2]
[328670464,1717687834747,-1357.05080301,0.00028454,2]
[328670465,1717687834756,-159.07,0.00028482,2]
[328670466,1717687834766,-196.95,0.00028488,2]